bitfinex-derivatives/quotes_SOLF0:USTF0_20250109
["timestamp","ask_amount","ask_price","bid_price","bid_amount"]
[1736396230270,2.5793,193.92,193.83,10.21161369]
[1736396230475,3.1,193.93,193.83,10.21161369]
[1736396230875,3.1,193.94,193.86,10.21161369]
[1736396232282,3.1,193.94,193.88,2.5796]
[1736396232577,3.1,193.94,193.86,10.21161369]
[1736396232975,5.679,193.94,193.89,2.5796]
[1736396233175,3.1,193.94,193.86,10.21161369]
[1736396233373,3.1,193.94,193.83,10.21161369]
[1736396233570,2.5797,193.89,193.82,3.0413]
[1736396233775,3.1,193.88,193.82,3.0413]
[1736396234081,3.1,193.88,193.86,2.58]
[1736396234278,3.1,193.88,193.8,10.21161369]
[1736396235081,2.5799,193.87,193.83,2.5803]
[1736396235682,2.5801,193.86,193.82,2.5805]
[1736396237082,2.5801,193.86,193.72,10.2748588]
[1736396237281,2.5801,193.86,193.81,2.5807]
[1736396239281,3.1,193.88,193.8,2.5808]
[1736396239490,3.1,193.88,193.77,10.21161369]
[1736396239877,2.5804,193.84,193.79,2.5808]
[1736396240079,3.12,193.83,193.74,10.21161369]
[1736396240980,3.12,193.83,193.77,10.21161369]
[1736396241574,10.21161369,193.9,193.77,10.21161369]
[1736396241778,194.0,193.99,193.84,2.5802]
[1736396241779,3.12,193.88,193.84,2.5802]
[1736396241978,2.5796,193.89,193.81,3.1265]
[1736396242380,2.5796,193.89,193.84,2.5803]
[1736396243285,13.33161369,193.9,193.81,3.1265]
[1736396243486,10.21161369,193.87,193.77,10.21161369]
[1736396243679,10.21161369,193.87,193.74,16.45811369]
[1736396244380,2.5803,193.84,193.79,2.5809]
[1736396244576,5.7003,193.84,193.79,2.5809]
[1736396245883,3.12,193.84,193.74,13.33811369]
[1736396246086,2.5805,193.83,193.74,13.33811369]
[1736396247089,2.5805,193.83,193.78,2.5811]
[1736396248293,2.5807,193.81,193.76,2.5813]
[1736396248483,10.21161369,193.81,193.67,7.1548588]
[1736396248685,2.5813,193.77,193.72,2.5819]
[1736396249788,3.12,193.78,193.73,2.5817]
[1736396249987,3.12,193.78,193.68,3.101]
[1736396250487,13.33161369,193.78,193.7,2.5822]
[1736396250689,13.33161369,193.78,193.68,3.101]
[1736396250889,13.33161369,193.78,193.64,10.21161369]
[1736396251094,13.33161369,193.78,193.64,13.19751369]
[1736396251894,2.5815,193.76,193.69,2.5823]
[1736396252289,2.5816,193.75,193.69,2.5823]
[1736396252593,13.33161369,193.78,193.67,2.5824]
[1736396252786,13.33161369,193.78,193.64,13.19751369]
[1736396253185,13.33161369,193.78,193.69,2.5823]
[1736396254090,2.5815,193.75,193.69,2.5823]
[1736396254892,10.21161369,193.81,193.7,10.21161369]
[1736396255188,3.12,193.82,193.7,11.70071369]
[1736396255386,3.12,193.82,193.78,2.5811]
[1736396255691,9.91835791,193.83,193.78,2.5811]
[1736396255890,7.33795791,193.83,193.78,2.5811]
[1736396256291,7.33795791,193.83,193.75,3.12]
[1736396256490,7.33795791,193.83,193.79,2.581]
[1736396256690,2.5802,193.85,193.79,2.581]
[1736396256891,2.5802,193.85,193.78,2.5811]
[1736396257090,2.5802,193.85,193.75,3.12]
[1736396257494,2.5802,193.85,193.79,2.5809]
[1736396259391,3.12,193.86,193.8,2.5807]
[1736396259892,2.5801,193.86,193.8,2.5807]
[1736396260191,10.21161369,193.87,193.79,2.581]
[1736396260392,2.5802,193.85,193.79,2.581]
[1736396262992,2.5802,193.85,193.8,2.5808]
[1736396263193,2.5802,193.85,193.75,13.33161369]
[1736396263592,10.21161369,193.87,193.75,13.33161369]
[1736396263593,12.79161369,193.87,193.75,13.33161369]
[1736396263894,10.21161369,193.87,193.75,13.33161369]
[1736396264194,2.5801,193.86,193.75,13.33161369]
[1736396264596,10.21161369,193.87,193.75,13.33161369]
[1736396265188,10.21161369,193.87,193.74,2.9304]
[1736396265394,10.21161369,193.84,193.74,6.0304]
[1736396265696,2.5804,193.83,193.77,2.5811]
[1736396265896,2.5804,193.83,193.74,6.0304]
[1736396266095,10.21161369,193.84,193.74,6.0304]
[1736396266794,2.5802,193.85,193.75,10.21161369]
[1736396267296,2.5802,193.85,193.79,2.5809]
[1736396267493,2.5802,193.85,193.75,10.21161369]
[1736396268392,10.21161369,193.87,193.74,6.0304]
[1736396268590,10.21161369,193.9,193.78,10.21161369]
[1736396268795,3.1,193.92,193.81,10.21161369]
[1736396268994,2.5794,193.91,193.86,2.58]
[1736396269488,10.21161369,193.93,193.82,3.1407]
[1736396269898,93.81161369,193.96,193.84,10.21161369]
[1736396270398,2.579,193.94,193.84,10.21161369]
[1736396271098,2.579,193.94,193.87,2.5799]
[1736396271396,2.5792,193.93,193.87,2.5799]
[1736396271599,93.81161369,193.96,193.87,2.5799]
[1736396271897,2.5794,193.92,193.86,2.58]
[1736396272594,2.5791,193.93,193.86,2.58]
[1736396272897,93.81161369,193.96,193.86,2.58]
[1736396273898,2.5791,193.93,193.86,2.58]
[1736396274099,93.81161369,193.96,193.86,2.58]
[1736396274399,2.5794,193.91,193.86,2.58]
[1736396275101,2.5793,193.92,193.86,2.58]
[1736396275699,2.5793,193.92,193.87,2.5799]
[1736396278009,90.73161369,193.96,193.84,10.21161369]
[1736396278302,93.81161369,193.96,193.84,10.21161369]
[1736396278798,2.5789,193.95,193.89,2.5795]
[1736396279000,3.06,193.97,193.84,10.21161369]
[1736396279404,3.08,193.97,193.84,10.21161369]
[1736396279605,2.5787,193.96,193.87,10.21161369]
[1736396279801,10.21161369,193.99,193.88,4.6218]
[1736396280007,87.8484847,194.08,193.88,4.6218]
[1736396280008,3.08,194.01,193.9,10.21161369]
[1736396280208,13.29161369,194.02,193.96,2.5786]
[1736396280409,13.29161369,194.02,193.91,3.1771]
[1736396280802,3.08,194.02,193.93,10.21161369]
[1736396280998,13.29161369,194.02,193.92,3.08]
[1736396281909,10.21161369,193.99,193.91,3.1771]
[1736396282311,2.5786,193.97,193.91,1.5907]
[1736396282508,3.08,193.96,193.91,1.5907]
[1736396284100,3.08,193.96,193.93,2.579]
[1736396285815,3.08,194.01,193.93,10.21161369]
[1736396286217,5.6581,194.01,193.93,10.21161369]
[1736396286913,5.6581,194.01,193.95,2.5787]
[1736396287413,5.6381,194.01,193.95,2.5787]
[1736396287607,3.06,194.01,193.97,2.5785]
[1736396288414,9.9055847,194.08,194.02,2.5779]
[1736396288617,3.06,194.07,194.02,2.5779]
[1736396288917,3.06,194.07,193.98,2.9244]
[1736396289221,10.21161369,194.05,193.98,1.4625]
[1736396289519,10.21161369,194.05,193.93,3.08]
[1736396289713,2.5781,194.01,193.94,2.5789]
[1736396290518,5.6579,194.02,193.96,2.5787]
[1736396290817,3.08,194.02,193.93,3.08]
[1736396291208,2.5782,194.0,193.93,5.659]
[1736396291413,2.5782,194.0,193.93,3.08]
[1736396291716,3.08,194.02,193.93,3.08]
[1736396291918,3.08,194.02,193.95,2.5787]
[1736396291919,2.5781,194.01,193.95,2.5787]
[1736396292612,3.08,194.02,193.92,5.9844]
[1736396292817,3.08,194.02,193.97,2.5785]
[1736396293015,3.08,194.02,193.94,10.21161369]
[1736396293218,2.5779,194.03,193.94,10.21161369]
[1736396293417,2.5779,194.03,193.97,2.5786]
[1736396294319,2.5779,194.03,193.98,2.5784]
[1736396294919,15.84921369,194.05,193.99,2.5782]
[1736396295218,3.06,194.06,193.94,10.21161369]
[1736396295614,5.6374,194.06,194.0,2.5781]
[1736396295918,3.06,194.07,193.97,10.21161369]
[1736396296119,3.06,194.07,193.97,13.27161369]
[1736396297421,3.06,194.07,194.0,2.5782]
[1736396297717,7.3284847,194.08,194.01,1.5287]
[1736396297917,7.3284847,194.08,194.01,3.0267]
[1736396298123,7.3284847,194.08,194.04,2.5775]
[1736396298323,5.637,194.1,194.04,2.5775]
[1736396298528,2.5767,194.11,194.06,2.5773]
[1736396299322,2.5768,194.11,194.05,2.5775]
[1736396299729,2.5768,194.11,194.01,4.4913]
[1736396299922,3.06,194.12,194.01,4.4913]
[1736396300125,2.5766,194.12,194.07,2.5772]
[1736396300528,5.6365,194.13,194.07,2.5772]
[1736396301230,3.06,194.13,194.03,10.21161369]
[1736396301727,2.5766,194.12,194.07,2.5772]
[1736396301924,3.06,194.13,194.07,2.5772]
[1736396302327,3.06,194.13,194.03,10.21161369]
[1736396302527,10.21161369,194.11,194.01,4.4913]
[1736396302830,2.5774,194.06,194.01,4.4913]
[1736396303033,2.5774,194.06,194.01,3.0267]
[1736396303224,13.27161369,194.08,193.96,3.0718]
[1736396303725,10.21161369,194.05,193.96,3.0718]
[1736396304331,10.21161369,194.05,193.96,5.6505]
[1736396304332,2.578,194.02,193.96,5.6505]
[1736396304829,3.06,194.03,193.96,3.0718]
[1736396306527,10.21161369,194.08,193.96,3.0718]
[1736396306728,3.06,194.05,193.96,3.0718]
[1736396307529,5.6375,194.05,193.96,3.0718]
[1736396307730,3.06,194.05,193.96,3.0718]
[1736396308133,3.06,194.05,193.99,2.5782]
[1736396310036,5.6376,194.05,193.99,2.5782]
[1736396313640,3.06,194.05,193.98,10.21161369]
[1736396314035,3.04,194.12,194.04,10.21161369]
[1736396314337,3.04,194.12,194.07,2.5772]
[1736396315236,2.5765,194.13,194.07,2.5772]
[1736396315443,3.04,194.13,194.09,2.5769]
[1736396317239,5.6161,194.16,194.1,2.5768]
[1736396317540,7.32524042,194.17,194.1,10.21161369]
[1736396317941,9.90114042,194.17,194.11,2.5766]
[1736396318240,7.32524042,194.17,194.1,10.21161369]
[1736396319034,7.32524042,194.17,194.12,2.5766]
[1736396319239,7.32524042,194.17,194.1,10.21161369]
[1736396319942,2.5762,194.15,194.07,13.25161369]
[1736396320136,17.53685411,194.17,194.07,10.21161369]
[1736396320537,2.5764,194.14,194.07,12.78871369]
[1736396321036,2.5764,194.14,194.08,2.5771]
[1736396321542,2.5764,194.14,194.07,10.21161369]
[1736396321841,2.5761,194.16,194.07,10.21161369]
[1736396322242,7.32524042,194.17,194.07,10.21161369]
[1736396323243,2.5762,194.15,194.1,2.5767]
[1736396325648,2.5762,194.15,194.07,10.21161369]
[1736396325843,9.90124042,194.17,194.07,10.21161369]
[1736396327746,9.90124042,194.17,194.12,2.5765]
[1736396328739,85.5886,194.3,194.11,3.02]
[1736396328938,10.21161369,194.25,194.15,2.5762]
[1736396329647,3.04,194.24,194.15,2.5762]
[1736396330349,13.25161369,194.25,194.16,2.576]
[1736396331251,2.5751,194.23,194.18,2.5757]
[1736396332251,3.04,194.26,194.16,10.21161369]
[1736396332452,2.5755,194.2,194.15,2.5762]
[1736396332653,3.04,194.21,194.15,2.5762]
[1736396333651,5.6154,194.21,194.15,2.5762]
[1736396334851,2.5756,194.2,194.15,2.5762]
[1736396336147,5.6154,194.21,194.16,2.5759]
[1736396336648,5.6154,194.21,194.13,14.80901369]
[1736396337852,3.04,194.21,194.13,14.80901369]
[1736396338054,2.5758,194.18,194.13,14.80901369]
[1736396338252,2.5758,194.18,194.13,4.5974]
[1736396338654,2.5758,194.18,194.15,2.5762]
[1736396338856,2.5757,194.19,194.15,2.5762]
[1736396340153,2.5761,194.16,194.13,3.1025]
[1736396340455,2.5761,194.16,194.12,2.5765]
[1736396340757,2.5759,194.17,194.13,2.5764]
[1736396341557,3.04,194.21,194.1,10.21161369]
[1736396341756,2.5758,194.18,194.14,2.5763]
[1736396341957,3.04,194.21,194.14,2.5763]
[1736396342350,3.04,194.21,194.11,3.094]
[1736396342557,2.5755,194.2,194.15,2.5762]
[1736396343254,2.5756,194.2,194.15,2.5762]
[1736396343457,3.04,194.21,194.12,2.5765]
[1736396343648,3.04,194.21,194.11,4.7001]
[1736396344459,2.5758,194.19,194.11,4.7001]
[1736396344955,3.04,194.21,194.11,4.7001]
[1736396345258,2.5755,194.2,194.11,4.7001]
[1736396345457,2.5755,194.2,194.15,2.5762]
[1736396345862,12.78701369,194.22,194.12,3.02]
[1736396346158,12.78701369,194.22,194.16,2.576]
[1736396346461,2.5752,194.23,194.13,10.21161369]
[1736396348062,2.5752,194.23,194.18,2.5757]
[1736396349263,13.23161369,194.25,194.13,10.21161369]
[1736396349453,10.21161369,194.22,194.11,7.7201]
[1736396349657,2.5756,194.2,194.14,2.5763]
[1736396351265,2.5756,194.2,194.15,2.5761]
[1736396351862,2.5753,194.22,194.17,2.5759]
[1736396352167,2.5753,194.22,194.13,10.21161369]
[1736396352468,2.5753,194.22,194.15,2.5761]
[1736396352765,2.5753,194.22,194.13,10.21161369]
[1736396354163,2.5753,194.22,194.18,2.5757]
[1736396355066,2.5753,194.22,194.13,10.21161369]
[1736396355269,2.5753,194.22,194.17,2.5759]
[1736396357767,3.02,194.25,194.13,10.21161369]
[1736396357973,2.5751,194.24,194.18,2.5757]
[1736396358372,3.02,194.25,194.13,10.21161369]
[1736396358574,3.02,194.25,194.17,2.5759]
[1736396359179,2.5753,194.22,194.17,2.5759]
[1736396359574,2.5752,194.23,194.18,2.5758]
[1736396361279,9.09734512,194.23,194.18,2.5758]
[1736396362078,6.52214512,194.21,194.14,6.52214512]
[1736396362484,6.52214512,194.21,194.11,14.8749588]
[1736396362773,6.52214512,194.21,194.13,6.52214512]
[1736396363274,10.19324976,194.24,194.11,17.91334976]
[1736396363774,2.5756,194.2,194.15,2.5761]
[1736396363980,10.19324976,194.24,194.11,17.91334976]
[1736396364572,2.5754,194.21,194.11,17.91334976]
[1736396365080,10.19324976,194.24,194.11,17.91334976]
[1736396365382,3.02,194.25,194.14,10.19324976]
[1736396366680,2.5751,194.23,194.18,2.5757]
[1736396367975,10.19324976,194.24,194.15,21.3874669]
[1736396368184,2.5754,194.22,194.16,9.7308588]
[1736396368383,2.5754,194.22,194.16,7.1548588]
[1736396368776,2.5754,194.22,194.15,28.5423257]
[1736396369379,2.5754,194.22,194.17,2.5759]
[1736396375384,10.19324976,194.24,194.16,28.5423257]
[1736396375782,10.19324976,194.24,194.16,7.1548588]
[1736396376383,2.5756,194.2,194.16,7.1548588]
[1736396376582,3.02,194.25,194.15,10.19324976]
[1736396376885,3.02,194.25,194.14,28.5423257]
[1736396377386,3.02,194.25,194.16,12.03221067]
[1736396377581,2.5752,194.23,194.16,12.03221067]
[1736396378087,2.5752,194.23,194.17,4.87735187]
[1736396379086,2.5752,194.23,194.18,2.5757]
[1736396379889,2.575,194.24,194.19,2.5756]
[1736396380982,3.02,194.25,194.17,17.34810856]
[1736396381190,3.02,194.25,194.17,7.1548588]
[1736396381489,13.21324976,194.25,194.17,7.1548588]
[1736396381685,2.5758,194.18,194.17,7.1548588]
[1736396381985,5.5958,194.18,194.17,7.1548588]
[1736396382179,3.02,194.18,194.16,21.3874669]
[1736396382385,3.02,194.18,194.15,7.1548588]
[1736396383285,3.02,194.18,194.11,3.094]
[1736396383882,2.5763,194.14,194.11,3.094]
[1736396384087,3.02,194.13,194.09,28.5423257]
[1736396384487,2.5766,194.12,194.08,28.5423257]
[1736396385291,9.10574051,194.12,194.08,28.5423257]
[1736396385491,9.10574051,194.12,194.06,39.22736621]
[1736396385685,9.10574051,194.12,194.06,28.5423257]
[1736396385686,6.52914051,194.12,194.06,28.5423257]
[1736396385881,6.52914051,194.1,194.06,28.5423257]
[1736396386291,6.52914051,194.1,194.05,7.1548588]
[1736396387185,9.10604051,194.1,194.05,7.1548588]
[1736396387382,9.10604051,194.1,194.04,9.10674051]
[1736396388285,6.52914051,194.08,194.03,7.1548588]
[1736396388491,3.02,194.07,194.03,7.1548588]
[1736396388693,3.02,194.06,194.03,7.1548588]
[1736396388892,3.02,194.06,194.02,3.0813]
[1736396389896,3.02,194.06,194.03,2.5778]
[1736396390792,9.10614051,194.1,194.04,2.5775]
[1736396391096,3.02,194.09,194.03,6.52914051]
[1736396391794,3.02,194.09,194.05,2.5775]
[1736396391996,3.02,194.09,194.03,6.52914051]
[1736396392593,3.02,194.09,194.06,2.5774]
[1736396393098,6.52914051,194.1,194.06,2.5774]
[1736396393299,3.02,194.09,194.06,2.5774]
[1736396394099,6.52914051,194.08,194.02,3.0813]
[1736396394493,9.10654051,194.06,194.02,3.0813]
[1736396394693,6.52914051,194.04,193.99,28.5423257]
[1736396394894,6.52914051,194.02,193.99,28.5423257]
[1736396395096,2.5781,194.01,193.99,28.5423257]
[1736396395401,6.52914051,194.02,193.96,2.5787]
[1736396395605,6.52914051,194.02,193.95,28.5423257]
[1736396396297,6.52914051,194.02,193.94,6.52914051]
[1736396397095,6.52914051,194.02,193.97,2.5786]
[1736396397303,3.02,194.03,193.97,2.5786]
[1736396398103,2.5779,194.02,193.97,2.5786]
[1736396399002,3.02,194.03,193.97,2.5786]
[1736396400799,3.02,194.03,193.93,2.9765]
[1736396400800,10.21262083,194.08,194.0,2.5781]
[1736396401000,3.02,194.07,194.0,2.5781]
[1736396402093,2.5774,194.06,194.0,2.5781]
[1736396402293,3.02,194.07,193.98,10.21262083]
[1736396402497,3.02,194.07,193.99,1.5362]
[1736396402698,2.577,194.09,193.99,1.5362]
[1736396402895,3.02,194.1,193.99,1.5362]
[1736396403098,3.02,194.1,194.0,1.5584]
[1736396403908,10.21262083,194.08,194.0,1.5584]
[1736396404110,10.21262083,194.05,193.93,1.4915]
[1736396404408,3.02,194.04,193.94,1.5584]
[1736396404704,10.21262083,194.05,193.94,1.5584]
[1736396405206,3.02,194.04,193.94,1.5584]
[1736396406404,10.21262083,194.02,193.94,1.5584]
[1736396406608,10.21262083,193.99,193.94,1.5584]
[1736396406803,3.02,193.98,193.93,1.4915]
[1736396407409,10.21262083,193.96,193.89,1.4666]
[1736396408613,2.5789,193.95,193.89,4.0462]
[1736396408815,10.21262083,193.96,193.89,1.4666]
[1736396409108,10.21262083,193.99,193.91,2.5793]
[1736396409305,3.02,193.98,193.89,1.4666]
[1736396410109,10.21262083,193.99,193.92,2.5791]
[1736396410312,13.23262083,193.99,193.89,11.67922083]
[1736396412217,2.5781,194.01,193.94,2.5789]
[1736396412411,2.5781,194.01,193.89,11.67922083]
[1736396412412,5.5981,194.01,193.92,10.21262083]
[1736396412818,3.02,194.01,193.92,10.21262083]
[1736396413114,10.21262083,194.05,193.92,10.21262083]
[1736396413315,5.5976,194.04,193.95,2.5788]
[1736396413614,5.5976,194.04,193.96,1.5974]
[1736396414014,5.5976,194.04,193.97,1.5175]
[1736396415217,3.02,194.04,193.97,1.5175]
[1736396415615,2.5779,194.03,193.97,1.5175]
[1736396416617,2.5779,194.03,193.98,2.5784]
[1736396417114,2.5779,194.03,193.97,1.5175]
[1736396417115,3.02,194.04,193.97,1.5175]
[1736396417712,10.21262083,194.08,193.97,1.5175]
[1736396417916,3.02,194.06,194.02,2.5779]
[1736396418119,10.21262083,194.08,194.02,2.5779]
[1736396418321,2.5772,194.07,193.97,11.73012083]
[1736396418515,13.23262083,194.08,193.97,1.5175]
[1736396418820,2.5778,194.03,193.97,1.5175]
[1736396419017,3.02,194.02,193.97,4.096]
[1736396420517,3.02,194.01,193.97,1.5175]
[1736396420714,3.02,194.01,193.98,2.5784]
[1736396421017,2.5782,194.0,193.97,1.5175]
[1736396421214,3.02,194.01,193.94,7.1548588]
[1736396421418,10.21262083,193.99,193.94,7.1548588]
[1736396421820,10.21262083,193.99,193.91,47.98622114]
[1736396422220,2.5786,193.97,193.91,50.56552114]
[1736396422420,10.21262083,193.99,193.91,50.56552114]
[1736396422421,3.02,193.96,193.91,47.98622114]
[1736396422623,2.5783,194.0,193.93,2.579]
[1736396422824,3.02,193.99,193.89,13.25362083]
[1736396423420,5.5984,193.99,193.9,12.01139554]
[1736396424223,3.02,193.99,193.93,2.579]
[1736396424416,3.02,193.99,193.9,7.1548588]
[1736396424417,2.5785,193.98,193.9,7.1548588]
[1736396424825,2.5785,193.98,193.89,61.22903144]
[1736396425126,3.02,193.99,193.89,61.22903144]
[1736396425315,5.5983,193.99,193.89,61.22903144]
[1736396425725,5.5983,193.99,193.9,47.97541061]
[1736396425926,5.5983,193.99,193.9,52.83432354]
[1736396426226,5.5983,193.99,193.93,2.579]
[1736396427121,5.5983,193.99,193.94,2.5789]
[1736396428020,3.02,193.98,193.94,2.5789]
[1736396428220,2.5783,193.99,193.94,2.5789]
[1736396428421,3.02,193.98,193.94,2.5789]
[1736396429423,2.5783,193.99,193.94,2.5789]
[1736396429722,3.02,193.98,193.94,2.5789]
[1736396432328,5.5981,194.01,193.91,28.5423257]
[1736396432531,3.02,194.02,193.92,10.21262083]
[1736396432726,3.02,194.02,193.92,63.0872788]
[1736396433327,10.21262083,194.08,193.95,10.21262083]
[1736396433628,3.02,194.07,193.96,4.69]
[1736396434028,3.02,194.06,193.96,4.69]
[1736396434233,3.02,194.06,193.98,10.21262083]
[1736396435326,3.02,194.08,193.99,4.86646645]
[1736396435734,5.5972,194.08,194.02,2.5778]
[1736396436431,10.21262083,194.11,193.99,3.02]
[1736396436633,13.23262083,194.11,193.99,3.02]
[1736396436928,3.02,194.11,194.01,10.21262083]
[1736396437733,3.02,194.11,194.01,17.36747963]
[1736396438228,5.5967,194.11,194.05,2.5775]
[1736396438826,2.5766,194.12,194.06,2.5774]
[1736396439029,2.5766,194.12,194.01,17.36747963]
[1736396439030,3.02,194.13,194.01,10.21262083]
[1736396439828,3.02,194.13,194.01,17.36747963]
[1736396440133,2.5768,194.11,194.05,2.5774]
[1736396440726,2.5766,194.12,194.06,2.5773]
[1736396440927,5.5966,194.12,194.06,2.5773]
[1736396441524,3.02,194.12,194.01,38.75494653]
[1736396441728,2.5768,194.11,194.01,38.75494653]
[1736396442229,2.5768,194.11,194.04,2.5775]
[1736396442832,2.5768,194.11,194.05,2.5775]
[1736396444739,2.5768,194.11,194.0,28.5423257]
[1736396444740,2.5763,194.14,194.04,13.23262083]
[1736396445033,10.21262083,194.17,194.04,13.23262083]
[1736396445034,10.21262083,194.17,194.05,4.5467]
[1736396445235,13.23262083,194.17,194.07,10.21262083]
[1736396445633,15.80862083,194.17,194.1,2.5768]
[1736396445937,13.23262083,194.17,194.07,10.21262083]
[1736396446132,13.23262083,194.17,194.05,4.5467]
[1736396446332,3.02,194.17,194.05,4.5467]
[1736396446537,10.21262083,194.16,194.05,4.5467]
[1736396447237,2.5765,194.13,194.07,2.5772]
[1736396447436,3.02,194.12,194.05,4.5467]
[1736396447642,10.21262083,194.16,194.05,4.5467]
[1736396447936,5.5962,194.15,194.08,2.5771]
[1736396448138,5.5962,194.15,194.05,4.5467]
[1736396448341,3.02,194.15,194.05,4.5467]
[1736396448531,3.02,194.14,194.1,2.5767]
[1736396449932,3.02,194.14,194.05,4.5467]
[1736396450133,3.02,194.14,194.08,2.577]
[1736396450940,5.5963,194.14,194.09,2.577]
[1736396452745,3.02,194.14,194.09,2.577]
[1736396453043,3.02,194.14,194.05,4.5467]
[1736396453342,3.02,194.14,194.06,2.5774]
[1736396453545,2.5767,194.12,194.06,2.5774]
[1736396453845,2.5767,194.12,194.07,2.5772]
[1736396454740,2.5767,194.12,194.05,4.5467]
[1736396455042,2.5767,194.12,194.08,2.5771]
[1736396455342,2.5765,194.13,194.08,2.5771]
[1736396455743,2.5765,194.13,194.09,2.577]
[1736396456042,2.5763,194.14,194.09,2.577]
[1736396456239,2.5763,194.14,194.05,7.5667]
[1736396456442,2.5762,194.15,194.1,2.5768]
[1736396456940,3.02,194.17,194.05,7.5667]
[1736396457140,2.5761,194.16,194.11,2.5767]
[1736396458438,2.5761,194.16,194.05,7.5667]
[1736396458741,2.5761,194.16,194.1,2.5768]
[1736396459639,2.5753,194.22,194.16,2.576]
[1736396459839,10.21262083,194.24,194.15,3.02]
[1736396460044,10.21262083,194.27,194.15,3.02]
[1736396460544,2.575,194.25,194.19,2.5755]
[1736396463952,10.21262083,194.27,194.16,10.21262083]
[1736396464242,7.32123284,194.28,194.19,10.21262083]
[1736396464447,3.02,194.31,194.2,3.02]
[1736396464851,5.5941,194.31,194.25,2.5748]
[1736396465451,2.5741,194.31,194.25,2.5748]
[1736396466147,2.5743,194.3,194.22,3.1369]
[1736396466651,12.78662083,194.32,194.22,13.34952083]
[1736396466850,10.21262083,194.35,194.22,13.34952083]
[1736396467146,13.23262083,194.35,194.22,13.34952083]
[1736396467349,2.5738,194.34,194.25,2.5747]
[1736396467550,2.5738,194.34,194.25,3.02]
[1736396468345,2.5738,194.34,194.26,2.5746]
[1736396468545,2.5738,194.34,194.25,3.02]
[1736396469152,2.5738,194.34,194.25,13.23262083]
[1736396470152,2.5738,194.34,194.27,2.5746]
[1736396471853,10.21262083,194.35,194.25,2.5747]
[1736396472657,2.5739,194.32,194.26,2.5747]
[1736396472855,3.02,194.32,194.26,2.5747]
[1736396473052,3.02,194.32,194.22,13.34952083]
[1736396473254,5.5938,194.33,194.25,2.5748]
[1736396473556,5.5938,194.33,194.22,13.34952083]
[1736396473857,2.5739,194.32,194.22,13.34952083]
[1736396474556,2.5739,194.32,194.25,2.5747]
[1736396474856,2.5739,194.32,194.22,13.34952083]
[1736396475059,3.02,194.33,194.22,13.34952083]
[1736396475354,2.5741,194.31,194.26,2.5747]
[1736396476759,3.02,194.33,194.26,2.5747]
[1736396476951,2.5739,194.32,194.22,13.34952083]
[1736396477150,3.02,194.33,194.22,13.34952083]
[1736396478758,10.21262083,194.32,194.22,3.1369]
[1736396478953,2.5743,194.29,194.22,5.7121]
[1736396479157,3.02,194.28,194.22,5.7121]
[1736396479358,3.02,194.28,194.22,3.1369]
[1736396479557,3.02,194.28,194.23,2.5751]
[1736396480754,3.02,194.28,194.16,259.93119753]
[1736396480953,10.21262083,194.26,194.17,1.6099]
[1736396481556,10.21262083,194.26,194.16,60.2557767]
[1736396481857,10.21262083,194.23,194.16,1.5372]
[1736396482061,3.02,194.22,194.16,1.5372]
[1736396482555,2.5755,194.21,194.16,1.5372]
[1736396483262,3.02,194.22,194.16,1.5372]
[1736396483463,5.5953,194.22,194.16,1.5372]
[1736396483761,3.02,194.22,194.16,4.1131]
[1736396483960,3.02,194.22,194.16,1.5372]
[1736396484262,3.02,194.24,194.16,1.5372]
[1736396484653,2.5748,194.26,194.2,2.5755]
[1736396484857,3.02,194.25,194.2,2.5755]
[1736396485354,5.5949,194.25,194.19,2.5756]